bitfinex/quotes_SOLUSD_20251212
["timestamp","ask_amount","ask_price","bid_price","bid_amount"]
[1765549911028,15.05783743,139.32,139.28,12.85769152]
[1765549911238,8.80994492,139.31,139.28,12.85769152]
[1765549911427,9.48994492,139.31,139.26,7.86037475]
[1765549911633,9.48994492,139.31,139.26,0.68]
[1765549911837,8.80994492,139.29,139.25,13.0470912]
[1765549912048,7.86,139.28,139.26,12.85769152]
[1765549912223,8.54,139.28,139.25,25.90478272]
[1765549912620,15.71985813,139.28,139.24,25.90478272]
[1765549912815,9.48994492,139.27,139.23,12.85769152]
[1765549913035,0.28432314,139.26,139.19,7.86431226]
[1765549913338,8.80994492,139.25,139.19,7.86431226]
[1765549913528,7.86,139.24,139.21,12.85769152]
[1765549913730,12.85769152,139.27,139.21,12.85769152]
[1765549913731,7.86,139.27,139.23,12.85769152]
[1765549913930,7.86,139.27,139.21,7.18338938]
[1765549913931,7.86,139.27,139.25,12.85769152]
[1765549914131,7.86,139.27,139.26,12.85769152]
[1765549914341,7.86,139.27,139.25,12.85769152]
[1765549914718,7.86,139.27,139.25,0.68]
[1765549914918,7.86,139.27,139.26,12.85769152]
[1765549915517,7.17981614,139.28,139.26,12.85769152]
[1765549915518,7.86,139.28,139.26,12.85769152]
[1765549915719,7.86,139.28,139.21,17.95751996]
[1765549915720,7.86,139.28,139.21,13.0470912]
[1765549915953,0.68,139.27,139.24,7.6658853]
[1765549916123,0.68,139.27,139.23,13.0470912]
[1765549916325,0.68,139.27,139.24,7.6658853]
[1765549916531,7.8605518,139.27,139.23,7.6658853]
[1765549916845,0.68,139.26,139.23,7.6658853]
[1765549917216,0.68,139.26,139.24,7.6658853]
[1765549917422,15.7198903,139.28,139.24,7.6658853]
[1765549917742,0.28432314,139.25,139.22,7.6658853]
[1765549917988,7.86,139.24,139.22,7.6658853]
[1765549918336,8.54,139.24,139.22,7.6658853]
[1765549918722,15.72223549,139.24,139.21,7.6658853]
[1765549919138,15.04223549,139.24,139.18,7.86487076]
[1765549919336,0.96432314,139.23,139.17,13.0470912]
[1765549919547,8.80994492,139.22,139.18,7.6658853]
[1765549919854,8.80994492,139.22,139.19,7.6658853]
[1765549919855,9.48994492,139.22,139.19,7.6658853]
[1765549920156,0.96432314,139.21,139.14,7.86686846]
[1765549920320,0.96432314,139.21,139.03,5.982514]
[1765549920321,16.76015336,139.19,139.08,17.97494588]
[1765549920522,0.28432314,139.16,139.08,0.68]
[1765549920753,7.86,139.15,139.09,20.91668067]
[1765549921049,7.86,139.14,139.1,0.68]
[1765549921247,7.86,139.14,139.08,7.86997553]
[1765549921436,7.86,139.14,139.08,7.18997553]
[1765549921766,7.86,139.14,139.12,7.6658853]
[1765549921968,7.86,139.14,139.13,7.6658853]
[1765549923260,7.86,139.14,139.1,8.3458853]
[1765549923463,7.86,139.14,139.13,7.6658853]
[1765549923662,0.68,139.16,139.13,7.6658853]
[1765549923852,7.86,139.15,139.14,7.6658853]
[1765549924050,0.68,139.16,139.14,7.6658853]
[1765549924268,7.86,139.15,139.13,7.6658853]
[1765549924567,0.68,139.16,139.11,0.68]
[1765549924779,0.68,139.16,139.04,0.99999999]
[1765549924780,9.09426806,139.14,139.1,7.6658853]
[1765549925241,0.68,139.14,139.11,7.6658853]
[1765549925660,0.96432314,139.14,139.1,7.6658853]
[1765549925864,8.80994492,139.13,139.09,7.6658853]
[1765549926059,0.68,139.14,139.11,7.6658853]
[1765549926273,15.04677186,139.15,139.07,18.65570923]
[1765549926471,9.77426806,139.14,139.11,7.6658853]
[1765549926647,7.18752246,139.13,139.09,7.6658853]
[1765549926853,0.68,139.12,139.07,7.8705703]
[1765549927077,7.88,139.11,139.07,7.8705703]
[1765549927247,7.88,139.11,139.07,7.1905703]
[1765549927444,7.88,139.11,139.08,0.67]
[1765549927855,0.14216157,139.17,139.1,13.0470912]
[1765549928144,7.88,139.16,139.1,13.0470912]
[1765549928350,7.88,139.16,139.14,7.6658853]
[1765549928863,9.09426806,139.14,139.1,7.6658853]
[1765549929064,7.88,139.15,139.13,7.6658853]
[1765549929256,7.88,139.15,139.1,20.90604253]
[1765549929257,7.88,139.15,139.14,7.6658853]
[1765549929578,7.18339199,139.21,139.14,7.6658853]
[1765549929753,7.18339199,139.21,139.19,7.6658853]
[1765549929953,7.88,139.2,139.19,7.6658853]
[1765549930156,7.88,139.21,139.19,7.6658853]
[1765549930368,7.88,139.21,139.2,7.6658853]
[1765549930755,7.88,139.21,139.17,7.6658853]
[1765549930756,15.06351781,139.21,139.17,7.6658853]
[1765549931056,15.06339429,139.21,139.19,7.6658853]
[1765549931366,15.74343899,139.21,139.19,7.6658853]
[1765549931673,15.74343899,139.21,139.16,7.18586327]
[1765549931674,0.96432314,139.2,139.16,7.6658853]
[1765549931874,8.80994492,139.19,139.14,13.0470912]
[1765549932075,8.80994492,139.19,139.14,7.6658853]
[1765549932076,0.28432314,139.18,139.14,7.6658853]
[1765549932380,7.88,139.17,139.14,7.6658853]
[1765549932673,7.88,139.17,139.13,7.6658853]
[1765549932674,8.80994492,139.16,139.13,7.6658853]
[1765549933011,8.80994492,139.16,139.14,7.6658853]
[1765549933012,0.68,139.16,139.14,7.6658853]
[1765549933149,9.48994492,139.15,139.13,7.6658853]
[1765549933350,0.28432314,139.14,139.1,7.6658853]
[1765549933552,8.56,139.13,139.09,13.0470912]
[1765549933749,0.68,139.12,139.06,0.67]
[1765549933984,0.14216157,139.14,139.11,7.6658853]
[1765549933985,0.68,139.14,139.11,7.6658853]
[1765549934276,9.09426806,139.16,139.12,7.6658853]
[1765549934483,7.88,139.13,139.12,7.6658853]
[1765549934780,7.88,139.13,139.09,13.0470912]
[1765549934781,7.88,139.13,139.11,7.6658853]
[1765549935164,8.56,139.13,139.11,7.6658853]
[1765549935470,9.77426806,139.12,139.03,17.98161064]
[1765549935649,0.28432314,139.08,139.02,0.67]
[1765549935852,7.88,139.08,139.07,7.6658853]
[1765549936675,0.68,139.16,139.08,13.0470912]
[1765549936885,7.88,139.16,139.14,7.6658853]
[1765549937059,7.88,139.16,139.15,7.6658853]
[1765549937255,0.68,139.21,139.15,7.6658853]
[1765549937476,0.68,139.21,139.14,7.18699438]
[1765549937477,7.6658853,139.26,139.17,13.0470912]
[1765549937654,7.6658853,139.24,139.17,13.0470912]
[1765549937853,7.6658853,139.24,139.18,7.6658853]
[1765549938069,8.80994492,139.2,139.16,7.6658853]
[1765549938264,8.80994492,139.18,139.14,20.7129765]
[1765549938583,0.68,139.17,139.14,7.6658853]
[1765549938960,7.86566835,139.17,139.14,7.6658853]
[1765549939165,9.09426806,139.16,139.09,7.1894704]
[1765549939357,9.09426806,139.16,139.07,8.55]
[1765549939358,0.28432314,139.14,139.07,0.67]
[1765549939570,9.09426806,139.14,139.11,7.6658853]
[1765549939758,8.56,139.15,139.11,7.6658853]
[1765549939955,7.88,139.15,139.13,7.6658853]
[1765549940370,0.68,139.14,139.1,13.0470912]
[1765549940583,9.77426806,139.14,139.09,13.0470912]
[1765549940877,7.1880391,139.12,139.09,7.6658853]
[1765549941281,7.8780391,139.12,139.09,7.6658853]
[1765549941496,0.69,139.12,139.09,7.6658853]
[1765549941664,7.1876203,139.13,139.09,7.6658853]
[1765549941665,8.57,139.11,139.09,7.6658853]
[1765549941865,8.57,139.11,139.06,0.71]
[1765549941866,8.57,139.11,139.08,7.6658853]
[1765549942060,8.57,139.11,139.06,7.90098308]
[1765549942061,8.57,139.11,139.09,7.6658853]
[1765549942267,7.88,139.11,139.1,7.6658853]
[1765549942697,7.88,139.11,139.09,7.18950416]
[1765549942862,7.88,139.11,139.1,7.6658853]
[1765549943363,7.88,139.11,139.08,13.0470912]
[1765549943682,7.88,139.11,139.1,7.6658853]
[1765549944425,7.18494036,139.18,139.1,8.3758853]
[1765549944580,7.88,139.17,139.15,7.6658853]
[1765549944782,7.88,139.17,139.14,7.6658853]
[1765549945201,0.69,139.16,139.12,13.0470912]
[1765549945399,0.97432314,139.16,139.12,20.7129765]
[1765549945600,0.97432314,139.16,139.11,7.89837153]
[1765549945601,0.97432314,139.16,139.11,7.6658853]
[1765549945804,0.69,139.15,139.11,7.6658853]
[1765549946384,7.88,139.17,139.14,7.6658853]
[1765549946609,7.88,139.17,139.16,7.6658853]
[1765549947116,7.88,139.17,139.15,7.6658853]
[1765549947284,7.88,139.17,139.16,7.6658853]
[1765549947479,7.88,139.17,139.16,7.67377887]
[1765549947681,7.88,139.17,139.15,7.67377887]
[1765549947897,7.88,139.17,139.16,7.67377887]
[1765549948412,7.88,139.17,139.12,20.72087007]
[1765549948413,15.75567982,139.17,139.12,20.72087007]
[1765549948592,0.69,139.16,139.13,7.67377887]
[1765549948797,7.88,139.17,139.15,7.67377887]
[1765549949313,0.69,139.2,139.16,7.67377887]
[1765549949488,0.69,139.2,139.15,20.94357909]
[1765549949489,7.88,139.19,139.17,7.67377887]
[1765549949804,7.88,139.19,139.15,7.67377887]
[1765549950115,0.28432314,139.14,139.09,7.67377887]
[1765549950302,7.88,139.13,139.1,7.67377887]
[1765549950498,7.88,139.13,139.08,38.21209331]
[1765549950689,7.88,139.16,139.12,7.67377887]
[1765549951019,7.88,139.17,139.14,7.67377887]
[1765549951197,15.06554505,139.17,139.12,7.1880391]
[1765549951393,9.78426806,139.16,139.12,13.0470912]
[1765549951599,0.69,139.16,139.11,7.18848177]
[1765549951785,9.09426806,139.16,139.12,7.67377887]
[1765549951991,0.69,139.16,139.11,20.94557297]
[1765549952204,0.69,139.16,139.14,7.67377887]
[1765549952410,15.06554505,139.17,139.14,7.67377887]
[1765549952615,15.75554505,139.17,139.14,7.67377887]
[1765549952819,8.57,139.17,139.14,7.67377887]
[1765549953120,0.69,139.16,139.13,7.67377887]
[1765549954112,0.69,139.16,139.13,14.8612883]
[1765549954307,7.88,139.17,139.13,7.89750943]
[1765549954524,7.88,139.17,139.15,7.67377887]
[1765549954818,7.88,139.17,139.14,14.86070665]
[1765549955124,8.80994492,139.2,139.16,7.67377887]
[1765549955321,7.88,139.2,139.19,7.67377887]
[1765549955535,7.88,139.2,139.18,7.67377887]
[1765549955702,7.88,139.2,139.17,20.72087007]
[1765549955902,8.57,139.2,139.17,20.72087007]
[1765549956211,0.69,139.19,139.17,7.67377887]
[1765549956413,7.88,139.2,139.17,7.67377887]
[1765549956613,0.69,139.19,139.17,7.67377887]
[1765549956806,7.88,139.2,139.18,7.67377887]
[1765549957390,7.88,139.2,139.18,14.85864377]
[1765549957601,7.88,139.2,139.18,7.67377887]
[1765549957910,7.88,139.2,139.19,7.67377887]
[1765549958501,0.67,139.26,139.19,21.42087007]
[1765549958705,7.88,139.25,139.21,7.67377887]
[1765549959220,0.67,139.24,139.19,20.23147856]
[1765549959419,0.67,139.24,139.19,27.90525743]
[1765549959608,0.67,139.24,139.2,7.67377887]
[1765549959926,8.80994492,139.21,139.16,7.67377887]
[1765549960120,8.55,139.2,139.16,7.67377887]
[1765549960309,8.55,139.2,139.16,7.18596625]
[1765549960622,7.88,139.2,139.17,7.67377887]
[1765549960920,7.88,139.2,139.17,20.72087007]
[1765549961101,0.67,139.19,139.17,13.0470912]
[1765549961304,7.88,139.2,139.18,7.67377887]
[1765549961505,7.88,139.2,139.18,0.7]
[1765549961720,7.88,139.2,139.17,27.90606506]
[1765549961907,0.67,139.19,139.17,13.0470912]
[1765549962221,0.95432314,139.19,139.14,7.67377887]
[1765549962524,8.80994492,139.18,139.13,27.90827393]
[1765549962708,9.47994492,139.18,139.13,27.90827393]
[1765549962911,15.0639647,139.2,139.15,14.85984518]
[1765549963106,15.0639647,139.2,139.15,7.67377887]
[1765549963107,15.7339647,139.2,139.15,7.67377887]
[1765549963430,15.7339647,139.2,139.15,7.88645566]
[1765549963431,8.55,139.2,139.15,7.88645566]
[1765549963603,7.88,139.21,139.19,7.67377887]
[1765549963802,7.88,139.24,139.2,7.67377887]
[1765549964001,7.88,139.24,139.18,13.0470912]
[1765549964310,7.88,139.24,139.17,0.7]
[1765549964311,7.88,139.24,139.22,7.67377887]
[1765549964631,0.1,139.33,139.26,13.0470912]
[1765549964796,0.1,139.33,139.3,7.67377887]
[1765549965001,0.1,139.33,139.29,7.67377887]
[1765549965002,7.98,139.33,139.29,7.67377887]
[1765549965307,15.82750802,139.33,139.27,14.85395338]
[1765549965504,0.67,139.32,139.27,7.67377887]
[1765549966203,0.67,139.32,139.28,7.67377887]
[1765549966404,7.98,139.33,139.29,7.67377887]
[1765549966628,7.98,139.33,139.32,7.67377887]
[1765549966929,0.1,139.33,139.32,7.67377887]
[1765549967127,0.1,139.33,139.32,0.7]
[1765549967331,0.1,139.33,139.32,15.55149922]
[1765549967512,0.1,139.38,139.32,15.55149922]
[1765549967715,0.1,139.38,139.35,13.0470912]
[1765549967906,7.86,139.37,139.33,7.67377887]
[1765549968106,7.86,139.37,139.36,7.67377887]
[1765549968307,7.86,139.37,139.35,13.0470912]
[1765549968831,7.86,139.37,139.35,13.7470912]
[1765549969006,7.86,139.37,139.36,7.67377887]
[1765549969328,7.86,139.37,139.36,14.84943903]
[1765549969530,8.53,139.37,139.31,0.7]
[1765549969834,7.86,139.37,139.32,0.7]
[1765549970017,0.1,139.38,139.35,7.1761698]
[1765549970326,0.1,139.38,139.37,20.72087007]
[1765549970829,0.1,139.38,139.37,21.42087007]
[1765549971026,0.1,139.38,139.37,13.7470912]
[1765549971228,0.1,139.38,139.37,13.0470912]
[1765549971444,0.77,139.38,139.35,7.67377887]
[1765549971638,0.77,139.38,139.35,7.17606307]
[1765549971846,0.77,139.38,139.35,7.67377887]
[1765549972011,8.63,139.38,139.35,7.67377887]
[1765549972210,8.63,139.38,139.34,7.67377887]
[1765549972430,8.63,139.38,139.35,7.67377887]
[1765549972603,9.76426806,139.37,139.32,7.67377887]
[1765549973006,0.67,139.36,139.31,20.22523294]
[1765549973232,8.80994492,139.35,139.29,7.17917756]
[1765549973436,7.17669011,139.34,139.3,7.67377887]
[1765549973604,7.86,139.33,139.31,7.67377887]
[1765549973807,7.86,139.33,139.3,7.67377887]
[1765549974038,8.53,139.33,139.3,7.67377887]
[1765549974341,0.28432314,139.37,139.32,7.67377887]
[1765549974342,7.86,139.37,139.32,7.67377887]
[1765549974518,7.86,139.37,139.34,7.67377887]
[1765549974721,7.86,139.37,139.31,13.7470912]
[1765549974722,8.53,139.37,139.31,13.7470912]
[1765549974920,7.86,139.37,139.34,7.67377887]
[1765549975107,7.86,139.37,139.31,13.0470912]
[1765549975108,0.67,139.36,139.31,13.0470912]
[1765549975314,8.80994492,139.35,139.31,20.72087007]
[1765549975831,0.67,139.34,139.32,7.67377887]
[1765549976025,8.80994492,139.35,139.32,7.67377887]
[1765549976226,0.67,139.34,139.31,13.0470912]
[1765549976538,0.67,139.34,139.3,20.72087007]
[1765549976716,7.86,139.33,139.29,14.85289241]
[1765549977034,7.86,139.33,139.28,13.0470912]
[1765549977035,7.86,139.33,139.31,7.67377887]
[1765549977240,7.86,139.33,139.29,0.7]
[1765549977439,7.86,139.33,139.31,7.67377887]
[1765549977638,7.86,139.33,139.32,7.67377887]
[1765549978014,0.77,139.38,139.32,26.18561334]
[1765549978229,7.86,139.37,139.33,13.7470912]
[1765549978546,7.86,139.37,139.35,12.43852214]
[1765549978743,7.86,139.37,139.33,13.7470912]
[1765549978922,7.86,139.37,139.34,0.7]
[1765549979126,7.86,139.37,139.35,12.43852214]
[1765549979330,0.67,139.36,139.33,25.48561334]
[1765549979518,0.67,139.36,139.33,13.0470912]
[1765549979935,7.84566909,139.36,139.32,12.43852214]
[1765549980140,7.84566909,139.36,139.31,20.22518107]
[1765549980141,9.47994492,139.35,139.31,13.0470912]
[1765549980317,0.28432314,139.34,139.29,12.43852214]
[1765549980522,8.80994492,139.32,139.27,7.18015917]
[1765549980721,8.80994492,139.3,139.26,12.43852214]
[1765549980957,8.80994492,139.28,139.23,12.43852214]
[1765549981235,8.80994492,139.28,139.24,12.43852214]
[1765549981440,7.86,139.29,139.26,12.43852214]
[1765549981644,8.53,139.29,139.26,12.43852214]
[1765549981811,8.53,139.29,139.23,13.0470912]
[1765549981812,9.47994492,139.28,139.23,13.0470912]
[1765549982015,9.47994492,139.28,139.22,7.1824474]
[1765549982244,7.86,139.29,139.24,12.43852214]
[1765549982443,9.47994492,139.28,139.22,20.9295386]
[1765549982616,21.91846706,139.28,139.22,19.62096954]
[1765549982815,8.80994492,139.28,139.24,12.43852214]
[1765549983042,7.86,139.29,139.25,13.13852214]
[1765549983218,7.86,139.29,139.26,0.7]
[1765549983418,7.86,139.29,139.24,7.18184429]
[1765549983632,7.86,139.29,139.25,12.43852214]
[1765549983919,8.80994492,139.28,139.25,12.43852214]
[1765549984121,7.86,139.29,139.26,12.43852214]
[1765549984738,8.53,139.29,139.25,12.43852214]
[1765549985040,7.86,139.29,139.28,12.43852214]
[1765549985247,0.67,139.35,139.28,13.13852214]
[1765549985441,7.86,139.32,139.31,7.17823558]
[1765549985649,8.53,139.32,139.28,13.0470912]
[1765549985816,8.53,139.32,139.28,25.48561334]
[1765549986017,0.1,139.38,139.31,12.43852214]
[1765549986018,8.80994492,139.36,139.31,12.43852214]
[1765549986222,0.1,139.38,139.35,12.43852214]
[1765549986440,0.1,139.38,139.32,0.7]
[1765549986643,0.77,139.38,139.34,12.43852214]
[1765549986948,0.77,139.38,139.35,12.43751683]
[1765549987428,0.77,139.38,139.32,0.7]
[1765549987429,0.1,139.38,139.36,19.61317699]
[1765549987631,9.61994492,139.38,139.33,13.0470912]
[1765549987952,9.61994492,139.38,139.34,19.61401092]
[1765549988248,0.1,139.38,139.35,19.61363682]
[1765549988446,0.1,139.38,139.36,12.43751683]
[1765549988643,0.1,139.38,139.35,19.61363682]
[1765549989351,0.1,139.38,139.36,0.68]
[1765549989548,0.1,139.38,139.37,12.43751683]
[1765549989856,8.80994492,139.37,139.33,13.0470912]
[1765549990044,8.80994492,139.37,139.33,12.43751683]
[1765549990348,0.71,139.36,139.32,7.17772035]
[1765549990573,0.71,139.36,139.31,20.2252184]
[1765549990735,16.66994492,139.35,139.3,19.61623124]
[1765549991273,8.80994492,139.33,139.3,12.43751683]
[1765549991556,8.80994492,139.31,139.27,12.43751683]
[1765549991723,7.86,139.3,139.27,12.43751683]
[1765549991940,8.80994492,139.29,139.25,7.18119988]
[1765549992136,9.51994492,139.29,139.25,12.43751683]
[1765549992350,0.71,139.28,139.25,12.43751683]
[1765549992554,0.71,139.28,139.24,7.18177794]
[1765549992757,7.86,139.3,139.25,0.68]
[1765549992953,7.86,139.3,139.26,12.43751683]
[1765549993135,8.57,139.3,139.27,7.1802699]
[1765549993333,7.86,139.3,139.27,19.61778673]
[1765549993549,15.0388431,139.3,139.26,7.18064344]
[1765549993752,0.71,139.29,139.26,7.18064344]
[1765549993947,9.51994492,139.29,139.25,19.61880034]
[1765549994260,7.86,139.3,139.27,12.43751683]
[1765549994461,9.51994492,139.29,139.26,12.43751683]
[1765549994650,9.51994492,139.29,139.25,19.6184667]
[1765549995168,7.86,139.3,139.26,13.11751683]
[1765549995466,15.03875142,139.3,139.26,20.29794166]
[1765549995638,9.51994492,139.29,139.26,12.43751683]
[1765549995841,12.43751683,139.27,139.24,13.0470912]
[1765549996141,0.28432314,139.25,139.21,19.62050648]
[1765549996343,8.57,139.26,139.23,12.43751683]
[1765549996892,8.57,139.26,139.21,7.86298965]
[1765549997176,9.51994492,139.25,139.2,12.43751683]
[1765549997541,0.71,139.24,139.2,19.62136172]
[1765549997854,8.80994492,139.23,139.19,7.18434564]
[1765549998053,7.86,139.22,139.19,19.62186247]
[1765549998361,7.86,139.23,139.21,12.43751683]
[1765549998561,7.86,139.23,139.2,7.18362208]
[1765549998769,8.57,139.23,139.2,7.18362208]
[1765549998961,7.86,139.23,139.2,7.86362208]
[1765549999168,7.86,139.23,139.2,25.82339219]
[1765549999542,7.86,139.23,139.18,31.68916378]
[1765549999748,7.86,139.23,139.22,12.43751683]
[1765550000048,7.86,139.23,139.19,25.14548458]
[1765550000049,7.86,139.23,139.21,12.43751683]
[1765550000248,8.57,139.23,139.2,12.43751683]
[1765550000861,0.71,139.22,139.19,12.43751683]
[1765550001257,0.71,139.22,139.17,18.84320198]
[1765550001258,0.71,139.22,139.17,19.82283405]
[1765550001461,0.71,139.22,139.18,7.1847755]
[1765550001664,0.71,139.22,139.18,19.62229233]
[1765550001851,0.71,139.22,139.18,7.1847755]
[1765550002176,7.89290006,139.22,139.18,7.1847755]
[1765550002548,7.86,139.23,139.18,7.1847755]
[1765550002549,7.86,139.23,139.19,12.43751683]
[1765550002752,7.86,139.23,139.22,12.43751683]
[1765550003173,7.86,139.23,139.22,13.13751683]
[1765550003474,8.54,139.23,139.19,25.48460803]
[1765550003649,9.48994492,139.22,139.19,13.0470912]
[1765550003847,7.86,139.23,139.2,12.43751683]
[1765550004069,7.86,139.23,139.21,12.43751683]
[1765550004474,7.86,139.23,139.19,38.19248664]
[1765550004681,0.68,139.22,139.19,32.66894305]
[1765550004883,8.54,139.23,139.19,32.66894305]
[1765550005079,9.48994492,139.22,139.18,19.62235891]
[1765550005296,9.48994492,139.22,139.18,7.18484208]
[1765550005485,7.86,139.23,139.19,19.62188221]
[1765550005787,7.86,139.23,139.21,12.43751683]
[1765550006297,0.68,139.22,139.19,7.18436538]
[1765550006477,8.54,139.23,139.19,19.62188221]
[1765550006673,8.54,139.23,139.19,7.18436538]
[1765550006877,15.04237124,139.23,139.19,12.43751683]
[1765550007060,7.86,139.23,139.21,12.43751683]
[1765550007266,7.86,139.23,139.2,0.7]
[1765550007577,9.48994492,139.22,139.19,13.0470912]
[1765550008266,7.86,139.23,139.2,12.43751683]
[1765550008463,7.86,139.23,139.21,12.43751683]
[1765550008671,7.86,139.23,139.22,12.43751683]
[1765550009094,15.72237287,139.23,139.19,19.62193963]
[1765550009391,8.54,139.23,139.19,19.62193963]
[1765550009595,9.48994492,139.22,139.18,7.18474635]
[1765550009792,9.48994492,139.22,139.18,19.62226318]
[1765550009992,8.80994492,139.22,139.18,20.32226318]
[1765550010295,7.86,139.23,139.19,12.43751683]
[1765550010606,7.86,139.23,139.18,25.84709726]
[1765550010607,9.48994492,139.22,139.18,12.43751683]
[1765550010762,9.48994492,139.22,139.17,32.86997772]
[1765550010965,7.86,139.23,139.2,12.43751683]
[1765550011165,7.86,139.23,139.22,12.43751683]
[1765550011896,7.86,139.23,139.22,7.18287602]
[1765550012095,7.86,139.23,139.22,19.62039285]
[1765550012408,7.86,139.23,139.22,20.32039285]
[1765550012788,7.86,139.23,139.22,19.62039285]
[1765550012998,7.86,139.23,139.22,7.18287602]
[1765550013207,7.86,139.23,139.22,19.62039285]
[1765550014582,16.66990886,139.28,139.22,38.2775829]
[1765550014782,7.86,139.27,139.24,12.43751683]
[1765550015011,7.86,139.27,139.26,12.43751683]
[1765550015912,7.86,139.27,139.25,25.48460803]
[1765550016078,7.86,139.27,139.25,19.61870353]
[1765550016286,8.54,139.27,139.25,12.43751683]
[1765550016606,7.86,139.27,139.25,12.43751683]
[1765550016914,7.86,139.27,139.25,19.61857956]
[1765550018522,8.56,139.27,139.24,19.61923169]
[1765550018683,0.7,139.26,139.23,13.0470912]
[1765550018886,7.86,139.27,139.25,19.61878446]
[1765550019124,7.86,139.27,139.25,7.18126763]
[1765550019428,7.86,139.27,139.26,12.43751683]
[1765550019893,7.86,139.27,139.26,13.08751683]
[1765550020230,7.86,139.27,139.26,19.61832969]
[1765550020525,8.56,139.27,139.24,7.18153122]
[1765550020695,9.50994492,139.26,139.22,12.43751683]
[1765550020892,9.50994492,139.26,139.22,19.61998686]
[1765550021126,0.7,139.25,139.21,25.48460803]
[1765550021292,0.7,139.25,139.2,7.18381182]
[1765550021494,8.80994492,139.24,139.2,7.18381182]
[1765550021730,8.80994492,139.22,139.18,12.43751683]
[1765550021902,8.80994492,139.22,139.17,0.2]
[1765550022100,8.80994492,139.2,139.17,0.2]
[1765550022395,8.80994492,139.18,139.17,0.2]
[1765550022828,9.50994492,139.18,139.17,0.2]
[1765550023000,8.80994492,139.18,139.17,0.2]
[1765550023412,9.50994492,139.18,139.17,0.2]
[1765550023626,7.86,139.19,139.17,0.2]
[1765550023923,8.56,139.19,139.17,0.2]
[1765550024120,9.50994492,139.18,139.17,0.2]
[1765550024616,8.56,139.19,139.17,0.2]
[1765550024995,7.86,139.19,139.17,0.2]
[1765550025596,15.74454243,139.19,139.17,0.2]
[1765550025791,8.56,139.19,139.17,0.2]
[1765550026018,9.50994492,139.18,139.17,0.2]
[1765550026929,8.80994492,139.18,139.17,0.2]
[1765550027347,7.86,139.19,139.17,12.63751683]
[1765550027634,7.86,139.19,139.17,0.2]
[1765550027851,0.7,139.18,139.17,0.2]
[1765550028215,7.86,139.19,139.17,0.2]
[1765550028602,8.56,139.19,139.17,0.2]
[1765550028832,0.7,139.18,139.17,0.2]
[1765550029127,7.86,139.19,139.17,0.2]
[1765550029333,0.7,139.24,139.18,12.47247077]
[1765550029535,0.7,139.24,139.17,8.03507794]
[1765550029536,16.66994492,139.23,139.17,25.99871952]
[1765550029700,17.36994492,139.23,139.17,19.85754871]
[1765550029902,17.36994492,139.23,139.18,12.47247077]
[1765550030118,17.36994492,139.23,139.19,12.47247077]
[1765550030458,17.36994492,139.23,139.19,7.18442416]
[1765550030604,0.7,139.22,139.19,7.18442416]
[1765550031313,0.7,139.22,139.19,12.47247077]
[1765550031724,0.7,139.22,139.18,7.83474961]
[1765550031931,7.86,139.23,139.21,12.47247077]
[1765550032328,0.7,139.22,139.19,19.65673511]
[1765550032531,8.80994492,139.21,139.18,12.47247077]
[1765550032834,7.86,139.2,139.17,32.9046617]
[1765550033032,8.56,139.2,139.17,12.67247077]
[1765550033233,8.56,139.2,139.17,0.2]
[1765550033234,0.7,139.19,139.17,0.2]
[1765550033533,8.80994492,139.19,139.17,0.2]
[1765550033734,7.86,139.2,139.17,7.3852776]
[1765550033934,8.56,139.2,139.17,19.85774837]
[1765550034316,16.69441505,139.19,139.17,0.2]
[1765550034830,9.50994492,139.18,139.17,0.2]
[1765550036036,8.80994492,139.19,139.17,0.2]
[1765550036238,9.50994492,139.19,139.17,0.2]
[1765550036434,8.80994492,139.19,139.17,0.2]
[1765550036616,0.7,139.18,139.17,0.2]
[1765550036819,0.98432314,139.18,139.17,0.2]